Cogmind - Beta 15 @@@ ROGUE MODE // 2025.07.17 @ 23:51:35 Player: LameThyst Result: Destroyed by Y-45 Defender with Heavy Assault Rifle Performance ------------- Evolutions (1) 500 Regions Visited (2) 400 Robots Destroyed (50) 250 Value Destroyed (1040) 1040 Prototype IDs (5) 100 Alien Tech Used (0) 0 Bonus (0) 0 TOTAL SCORE: 2290 Bonus ------- None Cogmind --------- Core Integrity 0/400 Matter 270/300 Energy 88/100 System Corruption 0% Temperature Cool (9) Movement Core (250) Ox4 Location -9/Materials Parts ------- > --- POWER (1) -------- (None) > --- PROPULSION (4) --- (None) > --- UTILITY (2) ------ Medium Storage Unit Sensor Array > --- WEAPON (2) ------- Mini Grenade Launcher Maul > --- INVENTORY (10) --- Ion Engine Cooling System High-capacity Matter Pod (200) Signal Interpreter Seismic Detector Light Armor Plating Improved Medium Laser Heavy Assault Rifle High-powered Shotgun Peak State ------------ > --- POWER ------------ Improved Ion Engine > --- PROPULSION ------- Improved Hover Unit Improved Hover Unit Improved Hover Unit Improved Hover Unit > --- UTILITY ---------- Medium Storage Unit Seismic Detector > --- WEAPON ----------- Beam Rifle High-powered Shotgun > --- INVENTORY -------- Ion Engine Hover Unit Cooling System High-capacity Matter Pod Sensor Array Signal Interpreter Light Armor Plating Heavy Assault Rifle Mini Grenade Launcher Maul [Rating: 18] Favorites ----------- Power Light Ion Engine Engine Light Ion Engine Propulsion Improved Hover Unit Leg Improved Aluminum Leg Hover Unit Improved Hover Unit Utility Medium Storage Unit Device Seismic Detector Storage Medium Storage Unit Protection Light Armor Plating Weapon Maul Energy Gun Medium Laser Ballistic Gun Assault Rifle Launcher Mini Grenade Launcher Impact Weapon Maul Build | -11 -10 -9 ------- Run | Yrd Mat Mat Slots Evolved 2 | . . 2 Power . | . . . Propulsion 2 | . . 2 Utility . | . . . Weapon . | . . . Parts Attached 40 | 8 14 18 Power 8 | 2 3 3 Engine 8 | 2 3 3 Core . | . . . Reactor . | . . . Propulsion 11 | 2 4 5 Treads . | . . . Leg 6 | 2 4 . Wheel . | . . . Hover 5 | . . 5 Flight . | . . . Utility 9 | 2 3 4 Device 4 | 1 2 1 Storage 2 | 1 1 . Processor . | . . . Hackware . | . . . Protection 3 | . . 3 Artifact . | . . . Weapon 12 | 2 4 6 Energy Gun 5 | 1 1 3 Energy Cannon . | . . . Ballistic Gun 5 | 1 2 2 Ballistic Cannon . | . . . Launcher 1 | . . 1 Special Weapon . | . . . Impact Weapon 1 | . 1 . Slashing Weapon . | . . . Piercing Weapon . | . . . Special Melee Weapon . | . . . Unidentified Prototypes 1 | . . 1 Parts Lost 9 | . 1 8 Power 1 | . . 1 Propulsion 5 | . . 5 Utility 2 | . 1 1 Weapon 1 | . . 1 Highest Loss Streak 5 | . 1 5 To Critical Strikes . | . . . Average Backups 8 | 2 8 9 Power 1 | . 1 1 Propulsion 1 | . 3 . Utility 3 | . 1 5 Weapon 2 | . 2 2 Tool/Special . | . . . Unused Backups 15 | . 9 6 Power . | . . . Propulsion 5 | . 5 . Utility 6 | . 1 5 Weapon 4 | . 3 1 Tool/Special . | . . . Average Slot Usage (%) 91 | . 99 85 Engine 12 | . 14 10 Leg 12 | . 28 . Hover 16 | . . 30 Device 11 | . 13 9 Storage 12 | . 14 11 Energy Gun 4 | . 6 2 Ballistic Gun 10 | . 14 8 Launcher 1 | . . 2 Impact Weapon 7 | . 7 7 Peak Build Rating 18 | 7 14 18 Average Rating 12 | 5 11 14 On Entrance 6 | . 7 11 Naked Turns . | . . . Heaviest Build 26 | 14 19 26 Greatest Support 28 | 20 26 28 Greatest Overweight (x) 6 | 1 . 6 Average Overweight (x) . | . . . Largest Inventory Capacity 10 | 8 10 10 Average Capacity 9 | 7 8 10 Most Carried 10 | 4 10 10 Average Carried 8 | 2 8 9 Final Capacity 10 | 8 10 10 Final Carried 10 | 4 10 9 Class Distribution -------------------- 100% | Mutant Dominant Class ---------------- Mutant | -10/Materials Mutant | -9/Materials Resources | -11 -10 -9 ----------- Run | Yrd Mat Mat Matter Collected 1443 | 291 421 731 Remotely . | . . . Salvage Created 1427 | 113 462 852 Parts 90 | 9 32 49 Haulers Intercepted 3 | . 2 1 Recyclers Shooed 2 | 2 . . Parts Field Recycled . | . . . Retrieved Matter . | . . . Parts Self-Destructed . | . . . Prevented . | . . . Kills | -11 -10 -9 ------- Run | Yrd Mat Mat Combat Hostiles Destroyed 28 | . 10 18 Melee 2 | . . 2 Guns 20 | . 10 10 AOE 4 | . . 4 Classes Destroyed 10 | 2 6 2 Worker 4 | . 1 3 Builder 3 | . . 3 Tunneler 4 | 2 . 2 Hauler 3 | . 2 1 Recycler 1 | 1 . . Operator 3 | . 2 1 Watcher 4 | . 2 2 Swarmer 9 | . 6 3 Grunt 15 | . 4 11 Sentry 4 | . . 4 Best Kill Streak 10 | 1 4 10 Combat Bots Only 4 | . 3 4 Max Kills in Single Turn 3 | 1 2 3 Gunslinging 1 | . 1 . Exploded 2 | . . 2 Melee 1 | . . 1 Uniques/NPCs Destroyed . | . . . Combat | -11 -10 -9 -------- Run | Yrd Mat Mat Hostile Shots Fired 161 | . 51 110 Missed 34 | . 14 20 Hits 127 | . 37 90 Projectile 127 | . 37 90 Critical Strikes 2 | . 1 1 Damage Taken 1685 | . 415 1270 Core 451 | . 40 411 Absorbed by Shields . | . . . Regen/Repaired (Parts) 59 | . . 59 Core Remaining (%) 92 | 100 84 . Volleys Fired 86 | 11 42 33 Largest 2 | 2 2 2 Hottest 85 | 70 85 85 Shots Fired 154 | 22 70 62 Gun 150 | 22 70 58 Cannon . | . . . Launcher 4 | . . 4 Special . | . . . Kinetic 90 | 11 42 37 Thermal 60 | 11 28 21 Explosive 4 | . . 4 Electromagnetic . | . . . Robot Hit Streak 13 | 9 6 13 Robot Miss Streak 5 | 3 3 5 Penetration Max . | . . . Secondary Targets 4 | . 3 1 Max Gunslinging Chain 1 | . 1 1 Shots Hit Robots 112 | 15 40 57 Core Hits 61 | 6 24 31 Critical Kills 3 | . 1 2 Critical Parts Destroyed 4 | . . 4 Critical Strikes 10 | . 4 6 Burn 3 | . 3 . Destroy 1 | . 1 . Smash 6 | . . 6 Melee Attacks 58 | . 1 57 Impact 58 | . 1 57 Slashing . | . . . Piercing . | . . . Sneak Attacks 9 | . . 9 Combat Hostiles . | . . . Follow-up Attacks . | . . . Damage Inflicted 2745 | 149 537 2059 Guns 1327 | 149 537 641 Cannons . | . . . Explosions 284 | . . 284 Melee 1134 | . . 1134 Ramming . | . . . Kinetic 826 | 61 300 465 Thermal 501 | 88 237 176 Explosive 284 | . . 284 Electromagnetic . | . . . Impact 1134 | . . 1134 Slashing . | . . . Piercing . | . . . Highest Corruption . | . . . Average Corruption . | . . . Corruption Purged . | . . . Corruption Blocked . | . . . Overload Shots . | . . . Overflow Damage 516 | . . 516 Projectiles . | . . . Explosions 3 | . . 3 Melee 513 | . . 513 Knockbacks 6 | . . 6 Impact 5 | . . 5 Kinetic . | . . . Secondary 1 | . . 1 Self-Inflicted Damage 87 | . . 87 Shots 2 | . . 2 Rammed . | . . . Targets Rammed . | . . . Kicked . | . . . Crushed . | . . . Highest Temperature 336 | 50 186 336 Average Temperature 99 | 25 90 121 Received Heat Transfer 708 | . 195 513 Siege Activations . | . . . Martial Activations . | . . . Shielding Activations . | . . . Robots Disrupted . | . . . Combat Hostiles . | . . . Robots Corrupted 8 | . . 8 Combat Hostiles 2 | . . 2 Parts Fried 17 | . . 17 Impact Corruptions 19 | . . 19 Robots Melted . | . . . Combat Hostiles . | . . . Parts Melted 4 | 1 3 . Heat Transferred 1554 | 259 851 444 Parts Sabotaged . | . . . Parts Stolen . | . . . Parts Stripped . | . . . Power Chain Reactions . | . . . Alert | -11 -10 -9 ------- Run | Yrd Mat Mat Maximum Alert Level . | . . . Low Security (%) 100 | 100 100 100 Level 1 . | . . . Level 2 . | . . . Level 3 . | . . . Level 4 . | . . . Level 5 . | . . . High Security . | . . . Max Security . | . . . Peak Influence 193 | 5 148 193 Initial . | . . . Average 65 | 1 55 80 Influence Increases 1106 | 15 358 733 Destroy 0b10 Robot/C 560 | . 200 360 Destroy 0b10 Robot/NC 110 | 15 35 60 Destroy Leader 134 | . 48 86 Successful Hack 61 | . 45 16 Disable Machine 75 | . 15 60 Destroy Structure 61 | . . 61 Partial Spotted 60 | . 15 45 Lose Combat Pursuer 45 | . . 45 Influence Decreases 921 | 15 357 549 Entered New Map 1 | . . 1 Time Decay 830 | 15 347 468 Lost Part 90 | . 10 80 Squads Dispatched 2 | . 1 1 Investigation 1 | . 1 . Extermination . | . . . Reinforcement 1 | . . 1 Assault . | . . . Garrison . | . . . Intercept . | . . . Searches Triggered . | . . . Construction Impeded . | . . . Haulers Reinforced . | . . . Active Scanning Responses . | . . . Cargo Convoy Interrupts . | . . . Stealth | -11 -10 -9 --------- Run | Yrd Mat Mat Distress Signals 5 | . 2 3 Communications Jammed . | . . . Distress Signals . | . . . Times Spotted 48 | . 18 30 Peak Tracking Total 5 | . 5 4 Tactical Retreats 3 | . . 3 Traps | -11 -10 -9 ------- Run | Yrd Mat Mat Traps Triggered 2 | . 1 1 Indirectly . | . . . Trap Hack Attempts . | . . . Triggered . | . . . Disarmed . | . . . Reprogrammed . | . . . Reused . | . . . Traps Extracted . | . . . Installed . | . . . Triggered . | . . . Machines | -11 -10 -9 ---------- Run | Yrd Mat Mat Machines Disabled 5 | . 1 4 Max in Single Turn 3 | . 1 3 Machines Repaired . | . . . Machines Dismantled . | . . . Machines Sabotaged . | . . . Overloaded Fab Kills . | . . . Hacking | -11 -10 -9 --------- Run | Yrd Mat Mat Machines Accessed 17 | . 10 7 Terminals 14 | . 8 6 Fabricators . | . . . Repair Stations 2 | . 1 1 Recycling Units 1 | . 1 . Scanalyzers . | . . . Garrison Access . | . . . Total Hacks 48 | . 24 24 Successful 22 | . 10 12 Failed 26 | . 14 12 Catastrophic 3 | . 2 1 Database Lockouts . | . . . Manual 36 | . 21 15 Terminals 34 | . 18 16 Fabricators . | . . . Repair Stations 10 | . 2 8 Recycling Units 4 | . 4 . Scanalyzers . | . . . Garrison Access . | . . . Terminal Hacks 3 | . 2 1 Prototype ID Bank 2 | . 1 1 Unreport Threat 1 | . 1 . Fabricator Hacks . | . . . Repair Station Hacks 6 | . . 6 Scan Component 3 | . . 3 Repair 3 | . . 3 Recycling Unit Hacks . | . . . Scanalyzer . | . . . Garrison Access Hacks . | . . . Unauthorized Hacks 13 | . 8 5 Terminals 10 | . 5 5 Skim 10 | . 5 5 Fabricators . | . . . Repair Stations . | . . . Recycling Units 3 | . 3 . Reject 1 | . 1 . Recyclers 1 | . 1 . Mask 1 | . 1 . Scanalyzers . | . . . Garrison Access . | . . . Data Cores Recovered 2 | . 2 . Used . | . . . Hacking Detections 15 | . 8 7 Full Trace Events 1 | . 1 . Feedback Events . | . . . Feedback Blocked . | . . . Robot Schematics Acquired . | . . . Robots Built . | . . . Authchips . | . . . Time . | . . . Total Robot Build Rating . | . . . Part Schematics Acquired . | . . . Parts Built . | . . . Authchips . | . . . Time . | . . . Total Part Build Rating . | . . . Parts Repaired 3 | . . 3 Time 90 | . . 90 Parts Recycled . | . . . Recycled Matter . | . . . Retrieved Matter . | . . . Retrieved Components . | . . . Parts Scanalyzed . | . . . Part Schematics Acquired . | . . . Parts Damaged . | . . . Bothacking | -11 -10 -9 ------------ Run | Yrd Mat Mat Used RIF Installer . | . . . Robots Hacked . | . . . Non-combat . | . . . Combat . | . . . Robot Hacks Applied . | . . . Relay Couplers Released . | . . . Fabnet Peak Effective % . | . . . Robots Rewired . | . . . Allies Hacked . | . . . Hacks Repelled . | . . . Allies | -11 -10 -9 -------- Run | Yrd Mat Mat Total Allies . | . . . Largest Group . | . . . Highest-Rated Group . | . . . Highest-Rated Ally . | . . . Total Orders . | . . . Ally Attacks . | . . . Total Damage . | . . . Kills . | . . . Allies Corrupted . | . . . Allies Melted . | . . . Intel | -11 -10 -9 ------- Run | Yrd Mat Mat Active Infowar (turns) 1789 | 10 621 1158 Sensors 496 | . . 496 Seismic 1293 | 10 621 662 Robot Analysis Total . | . . . Derelict Logs Recovered . | . . . Drone Launches . | . . . Drone Recoveries . | . . . Exploration | -11 -10 -9 ------------- Run | Yrd Mat Mat Turns Passed 2552 | 120 1095 1337 Spaces Moved 1756 | 64 770 922 Core 14 | 8 . 6 Treads . | . . . Legs 826 | 56 770 . Wheels . | . . . Hover 916 | . . 916 Flight . | . . . Fastest Speed 48 | 50 120 48 Average Speed 100 | 117 120 83 Slowest Speed 350 | 190 120 350 Overloaded Moves . | . . . Propulsion Burnouts . | . . . Robots Hopped . | . . . Potential Cave-ins . | . . . Cave-ins Triggered . | . . . Exploration Rate (%) 52 | 4 96 56 Regions Visited 2 Branch Regions . Pre-discovered Areas 3 | . . 3 Known Exits Taken 1 | . 1 . Unknown Exits Taken 1 | 1 . . Scrap Searched . | . . . Spaces Dug 35 | . . 35 Terrain Destroyed 63 | . . 63 Melee 35 | . . 35 Projectile . | . . . AOE 28 | . . 28 Terrain Rammed . | . . . Walls Destroyed . | . . . Machines Disabled . | . . . Actions | -11 -10 -9 --------- Run | Yrd Mat Mat Total 2275 | 85 881 1309 Wait 240 | . 12 228 Move 1754 | 63 769 922 Hop . | . . . Pick Up 32 | 3 19 10 Fast Attach 15 | 7 3 5 Attach 8 | . . 8 Detach 4 | . 1 3 Swap 43 | 1 12 30 Drop 35 | . 22 13 Fire 86 | 11 42 33 Melee 58 | . 1 57 Ram . | . . . Kick . | . . . Crush . | . . . Escape Stasis . | . . . Rewire . | . . . Trap . | . . . Miscellaneous . | . . . Route ------- -11/Scrapyard -10/Materials (discovered 4 exits: *Mat x3 / *Min) -9/Materials (discovered 6 exits: *Mat x3 / [*Min] / Sto x2) History --------- Turn | Location | Event 6 | -11/Scrapyard | Discovered new exit (range 15) 121 | -11/Scrapyard | Entered Materials 247 | -10/Materials | Discovered new exit (range 13) 307 | -10/Materials | Build established: Mutant 453 | -10/Materials | Discovered new exit (range 12) 496 | -10/Materials | Discovered new exit (range 13) 752 | -10/Materials | Learned 4 Recycling zone layouts 822 | -10/Materials | Identified exit to Mines 822 | -10/Materials | Identified exit to Materials 930 | -10/Materials | Learned 2 Storage zone layouts 972 | -10/Materials | Learned Storage stockpile data 1043 | -10/Materials | Discovered exit to Materials (range 16) 1084 | -10/Materials | Learned Storage stockpile data 1216 | -10/Materials | Entered another Materials area 1216 | -9/Materials | Evolved 2 slots: Propulsion x2 1217 | -9/Materials | Identified exit to Storage 1353 | -9/Materials | Discovered new exit (range 10) 1452 | -9/Materials | Discovered new exit (range 5) 1612 | -9/Materials | Repaired Imp. Hover Unit 1646 | -9/Materials | Repaired Imp. Hover Unit 1673 | -9/Materials | Repaired Seismic Detector 1973 | -9/Materials | Identified exit to Materials 1976 | -9/Materials | Discovered exit to Materials (range 9) 2024 | -9/Materials | Learned 4 Recycling zone layouts 2079 | -9/Materials | Lost 5 parts (3n1u1w) 2098 | -9/Materials | Learned location of Mines (-9) 2154 | -9/Materials | Learned location of Zion (-7) 2197 | -9/Materials | Learned location of 2 exits from Materials 2531 | -9/Materials | Core integrity fell below 50% 2548 | -9/Materials | Core integrity fell below 20% 2553 | -9/Materials | Destroyed by Y-45 Defender with Heavy Assault Rifle Last Messages --------------- 02447_ Destroyed Transport Network Coupler. 02447_ A-02 Transporter system corrupted by crushing effect. 02448_ A-02 Transporter system terminally corrupted. 02448_ Weight Redist. System fried. 02451_ K-01 Serf collects debris. 02453_ Acquired Prototype Energy Gun. 02453_ Identified Imp. Medium Laser. 02453_ Faulty integration triggers energy drain (-183). 02455_ Dropped Faulty Imp. Medium Laser. 02455_ K-01 Serf collects debris. 02457_ Acquired Imp. Medium Laser. 02460_ K-01 Serf collects debris. 02499_ U-05 Engineer builds a Wall. 02519_ W-16 Scout sends out distress signal. 02530_ Imp. Hover Unit destroyed. 02536_ Imp. Ion Engine destroyed. 02552_ G-34 Mercenary destroyed. Map ----- +----------------------------------------------------+ | #??## ###?????????# [[!% | | #???# # #?????????######## ###[%!% | | #???# #??????########### """" """" #?####| | | #???# # #??????# # """ "" #????#! | | ##??# ###??????# + "" "" #????# | | ##### #????????# # % ######= | | ### [ #????????# = # # #* | | ?##!!]] [#????????########### """ # # | | ??#!!]][[#?????????????????# "" " # #% | | ??#######"#????????????????# """" # "" # | | ?????????##????????????????# "T" + "" # | | ???????????????????????????# # T" # | | ???????????????????????###?# # "" # | | ???????????????????????##################### "" # | | ???????????????????????# # # ?# | | ???????????????????????# # ! ####?# | | ???????????????????????# # ] #????# | | ???????????????????????# # #????# | | ???????????????????????# """ # """ """ #????# | | #??????????????????????# "T" """ # """ """ #????# | | #?????????????????????## """ """ # """ """ #????# | | #?????????????????????## # ? #????# | | ####?????????????????## ##+########+#####????# | | ?????????????????????# = #???????# | | ?????????????????????# %g #???????# | | ?????????????????????# Y @ #???????# | | ?????????????????????# ##############???????# | | ?????????????????????# ######"#####??????????# | | ?????????????????????## # """ """ #??????????# | | ??????????????????????# ## """ """ #??????????# | | ?????????????????????? # """ """ #??????????? | | ????????????????????? # #???????????? | | ???????????????????? + #???????????? | | ??????????????????? # = #???????????? | | ??????????????????#### # #???????????? | | ?????????????????????### # #???????????? | | ???????????????????????# ########"##???????????? | | ???????????????????????# # #???????????? | | ???????????????????????? # ##??????????? | | ????????????????????????a # ! #??????????? | | ???????????????????????? # ##??????????? | | ???????????????????????????# """ """ #???????????? | | ???????????????????????????# """ """ #???????????? | | ???????????????????????#???# """ """ #???????????? | | ???????????????????????# ??# ! #???????????? | | ???????????????????????# ?######"####???????????? | | ???????????????????????# #### [ #????????????? | | ???????????????????????# T #????????????? | | """"???????????????????# "" #????????????? | | """???????????????????# #????????????? | +----------------------------------------------------+ Best States ------------- Heat Dissipation 39 Energy Generation 12 Energy Capacity 265 Matter Stores 300 Matter Capacity 300 Sight Range 16 Robot Scan Range 14 Terrain Scan Density 10 Armor Coverage 150 Evasion (%) 55 Item Schematics ----------------- None Robot Schematics ------------------ None Fabricated ------------ Nothing Repaired ---------- Imp. Hover Unit | 28% | -9/Materials Imp. Hover Unit | 42% | -9/Materials Seismic Detector | 30% | -9/Materials Alien Tech Used ----------------- None Achievements -------------- None Challenges ------------ None Game ------ Seed ArmageddonSalvagingAirjet Manual? 0 Play Time 00:29:54 Cumulative 89.4 hours Start 2025.07.17 @ 22:32:04 End 2025.07.17 @ 23:51:35 Sessions 2 Manual Loads 0 Difficulty Rogue Special Mode None Game No. 98 Rogue 98 Adventurer 0 Explorer 0 Win Type - Total 0 Types 0/0/0/0/0/0/0/0/0/0 Lore% 51 Gallery% 41 Achievement% 32 Wizard Run 0 Options --------- Layout 1 ASCII 0 Keyboard 0 Movement Mouse Keybinds 0 Fullscreen 2 Font 48/Smallcaps Map View 50x35 Zoom Use 0% Tactical HUD 1 Map Filters NONE Filters NONE Steam 0 RUN: 7b1499c2-5ece-442c-8ee2-8c825ca8ad94